fUST/lending_fUST_20250309
["ID","MTS","AMOUNT","RATE_DAILY","PERIOD"]
[355728821,1741511445739,-875.01,0.00047671,120]
[355728823,1741511445750,-500.0,0.00047671,120]
[355728826,1741511445759,-500.0,0.00047671,120]
[355728828,1741511445769,-500.0,0.00047671,120]
[355728829,1741511445778,-500.0,0.00047671,120]
[355728830,1741511445787,-540.46056154,0.00047671,120]
[355728831,1741511445797,-500.0,0.00047671,120]
[355728832,1741511445807,-500.0,0.00047671,120]
[355728833,1741511445818,-500.0,0.00047671,120]
[355728834,1741511445828,-500.0,0.00047671,120]
[355728835,1741511445838,-500.0,0.00047671,120]
[355728836,1741511445847,-500.0,0.00047671,120]
[355728837,1741511445858,-500.0,0.00047671,120]
[355728839,1741511445867,-500.0,0.00047671,120]
[355728840,1741511445878,-2161.04,0.00047671,30]
[355728841,1741511445889,-574.83,0.00047671,120]
[355728842,1741511445900,-500.0,0.00047671,120]
[355728843,1741511445910,-500.0,0.00047671,120]
[355728844,1741511445919,-500.0,0.00047671,120]
[355728845,1741511445929,-500.0,0.00047671,120]
[355728846,1741511445939,-500.0,0.00047671,120]
[355728847,1741511445949,-500.0,0.00047671,120]
[355728848,1741511445959,-500.0,0.00047671,120]
[355728849,1741511445968,-500.0,0.00047671,120]
[355728850,1741511445978,-500.0,0.00047671,120]
[355728851,1741511445987,-500.0,0.00047671,120]
[355728852,1741511445997,-500.0,0.00047671,120]
[355728853,1741511446006,-1556.56,0.00047671,120]
[355728854,1741511446016,-500.0,0.00047671,120]
[355728855,1741511446025,-500.0,0.00047671,120]
[355728856,1741511446035,-500.0,0.00047671,120]
[355728857,1741511446046,-500.0,0.00047671,120]
[355728858,1741511446056,-500.0,0.00047671,120]
[355728859,1741511446065,-500.0,0.00047671,120]
[355728860,1741511446075,-555.04,0.00047671,120]
[355728861,1741511446085,-500.0,0.00047671,2]
[355728862,1741511446094,-2986.44,0.00047671,120]
[355728863,1741511446104,-500.0,0.00047671,120]
[355728864,1741511446113,-500.0,0.00047671,120]
[355728865,1741511446123,-604.05,0.00047671,120]
[355728866,1741511446132,-500.0,0.00047671,2]
[355728867,1741511446142,-748.36,0.00047671,120]
[355728868,1741511446151,-500.0,0.00047671,120]
[355728869,1741511446160,-683.97,0.00047671,120]
[355728870,1741511446170,-500.0,0.00047671,120]
[355728871,1741511446179,-500.0,0.00047671,120]
[355728872,1741511446189,-500.03,0.00047671,120]
[355728873,1741511446199,-626.38,0.00047671,120]
[355728874,1741511446208,-500.0,0.00047671,120]
[355728875,1741511446217,-500.0,0.00047671,120]
[355728876,1741511446227,-685.41,0.00047671,120]
[355728877,1741511446236,-150.0,0.00047673,10]
[355728879,1741511446245,-519.86499018,0.00047673,10]
[355728881,1741511446255,-746.14595463,0.0004768,2]
[355728882,1741511446264,-773.75335495,0.00047735,2]
[355728883,1741511446273,-802.38222908,0.0004779,2]
[355728884,1741511446283,-3000.0,0.000479,2]
[355728885,1741511446292,-151.0,0.00047915,120]
[355728886,1741511446302,-500.0,0.00047915,120]
[355728887,1741511446311,-151.0,0.00047915,120]
[355728888,1741511446320,-151.0,0.00047915,120]
[355728889,1741511446329,-1194.47,0.00047915,120]
[355728890,1741511446339,-500.0,0.00047915,120]
[355728891,1741511446348,-458.02869,0.00047915,120]
[355728892,1741511446358,-500.0,0.00047915,120]
[355728893,1741511446367,-458.02869,0.00047915,120]
[355728894,1741511446377,-434.793293,0.00047925,120]
[355728895,1741511446387,-434.793293,0.00047925,120]
[355728896,1741511446396,-459.15478,0.00047925,120]
[355728897,1741511446406,-3006.31564698,0.00047962,28]
[355728898,1741511446416,-151.0,0.0004798,120]
[355728899,1741511446426,-254.410923,0.0004798,120]
[355728900,1741511446435,-195.27912,0.0004798,120]
[355728901,1741511446445,-151.0,0.0004799,120]
[355728902,1741511446454,-151.0,0.0004799,120]
[355728903,1741511446464,-151.0,0.00048,120]
[355728904,1741511446473,-151.0,0.00048,120]
[355728905,1741511446483,-151.0,0.00048,120]
[355728906,1741511446492,-246.46291928,0.00048218,2]
[355728907,1741511446500,-500.0,0.00048219,120]
[355728908,1741511446510,-573.36367124,0.00048219,120]
[355728909,1741511446519,-500.0,0.00048219,120]
[355728910,1741511446529,-500.0,0.00048219,120]
[355728911,1741511446538,-500.0,0.00048219,120]
[355728912,1741511446547,-500.0,0.00048219,120]
[355728913,1741511446556,-500.0,0.00048219,120]
[355728914,1741511446566,-500.0,0.00048219,120]
[355728915,1741511446577,-500.0,0.00048219,120]
[355728916,1741511446587,-500.0,0.00048219,120]
[355728917,1741511446597,-500.0,0.00048219,120]
[355728918,1741511446606,-500.0,0.00048219,120]
[355728919,1741511446615,-12597.42,0.00048219,2]
[355728920,1741511446625,-500.0,0.00048219,120]
[355728921,1741511446634,-500.0,0.00048219,120]
[355728922,1741511446644,-500.0,0.00048219,120]
[355728923,1741511446657,-500.0,0.00048219,120]
[355728924,1741511446667,-500.0,0.00048219,120]
[355728925,1741511446677,-503.73761624,0.00048219,120]
[355728926,1741511446686,-500.0,0.00048219,120]
[355728927,1741511446696,-500.0,0.00048219,120]
[355728928,1741511446768,-500.0,0.00048219,120]
[355728929,1741511446778,-500.0,0.00048219,120]
[355728930,1741511446787,-500.0,0.00048219,120]
[355728931,1741511446797,-500.0,0.00048219,120]
[355728932,1741511446806,-500.0,0.00048219,120]
[355728933,1741511446815,-500.0,0.00048219,120]
[355728934,1741511446824,-500.0,0.00048219,120]
[355728935,1741511446834,-500.0,0.00048219,120]
[355728936,1741511446843,-664.83,0.00048219,120]
[355728937,1741511446852,-500.0,0.00048219,120]
[355728938,1741511446862,-500.0,0.00048219,120]
[355728939,1741511446872,-500.0,0.00048219,120]
[355728940,1741511446881,-500.0,0.00048219,120]
[355728941,1741511446891,-500.0,0.00048219,120]
[355728942,1741511446900,-596.92,0.00048219,120]
[355728943,1741511446909,-500.0,0.00048219,120]
[355728944,1741511446918,-500.0,0.00048219,120]
[355728945,1741511446928,-500.0,0.00048219,120]
[355728946,1741511446937,-500.0,0.00048219,120]
[355728947,1741511446947,-930.14,0.00048219,120]
[355728948,1741511446956,-500.0,0.00048219,120]
[355728949,1741511446965,-500.0,0.00048219,120]
[355728950,1741511446975,-500.0,0.00048219,120]
[355728951,1741511446985,-500.0,0.00048219,120]
[355728952,1741511446994,-500.0,0.00048219,120]
[355728953,1741511447004,-216.66007709,0.00048219,120]
[355728954,1741511447013,-500.0,0.00048219,120]
[355728955,1741511447023,-500.0,0.00048219,120]
[355728956,1741511447032,-500.0,0.00048219,120]
[355728957,1741511447042,-500.0,0.00048219,120]
[355728958,1741511447051,-500.0,0.00048219,120]
[355728959,1741511447060,-500.0,0.00048219,120]
[355728960,1741511447070,-687.8,0.00048219,120]
[355728961,1741511447079,-500.0,0.00048219,120]
[355728962,1741511447088,-895.35,0.00048219,120]
[355728963,1741511447097,-523.57939622,0.00048219,120]
[355728964,1741511447106,-500.0,0.00048219,120]
[355728965,1741511447115,-500.0,0.00048219,120]
[355728966,1741511447124,-500.0,0.00048219,120]
[355728967,1741511447134,-500.0,0.00048219,120]
[355728968,1741511447143,-704.25,0.00048219,120]
[355728969,1741511447153,-500.0,0.00048219,120]
[355728970,1741511447162,-500.0,0.00048219,120]
[355728971,1741511447172,-500.0,0.00048219,120]
[355728972,1741511447181,-7114.38,0.00048219,2]
[355728973,1741511447191,-500.0,0.00048219,120]
[355728974,1741511447200,-500.0,0.00048219,120]
[355728975,1741511447209,-500.0,0.00048219,120]
[355728976,1741511447218,-500.0,0.00048219,120]
[355728977,1741511447228,-500.0,0.00048219,120]
[355728978,1741511447237,-500.0,0.00048219,120]
[355728979,1741511447246,-500.0,0.00048219,120]
[355728980,1741511447255,-602.74,0.00048219,120]
[355728981,1741511447264,-500.0,0.00048219,120]
[355728982,1741511447274,-500.0,0.00048219,120]
[355728983,1741511447283,-500.0,0.00048219,120]
[355728984,1741511447292,-500.0,0.00048219,120]
[355728985,1741511447301,-500.0,0.00048219,120]
[355728986,1741511447311,-500.0,0.00048219,120]
[355728987,1741511447321,-500.0,0.00048219,120]
[355728988,1741511447331,-500.0,0.00048219,120]
[355728989,1741511447341,-500.0,0.00048219,120]
[355728990,1741511447351,-500.0,0.00048219,120]
[355728991,1741511447362,-500.0,0.00048219,120]
[355728992,1741511447371,-500.0,0.00048219,120]
[355728993,1741511447380,-500.0,0.00048219,120]
[355728994,1741511447389,-500.0,0.00048219,120]
[355728995,1741511447399,-500.0,0.00048219,120]
[355728996,1741511447408,-500.0,0.00048219,120]
[355728997,1741511447417,-500.0,0.00048219,120]
[355728998,1741511447427,-500.0,0.00048219,120]
[355728999,1741511447435,-500.0,0.00048219,120]
[355729000,1741511447445,-500.0,0.00048219,120]
[355729001,1741511447454,-500.0,0.00048219,120]
[355729002,1741511447464,-500.0,0.00048219,120]
[355729003,1741511447473,-500.0,0.00048219,120]
[355729004,1741511447483,-500.0,0.00048219,120]
[355729005,1741511447492,-500.0,0.00048219,120]
[355729006,1741511447501,-500.0,0.00048219,120]
[355729007,1741511447511,-500.0,0.00048219,120]
[355729008,1741511447520,-500.0,0.00048219,120]
[355729009,1741511447529,-392.09975623,0.00048219,120]
[355729010,1741511447539,-500.0,0.00048219,120]
[355729012,1741511447548,-500.0,0.00048219,120]
[355729013,1741511447558,-500.0,0.00048219,120]
[355729014,1741511447567,-500.0,0.00048219,120]
[355729015,1741511447579,-1376.74,0.00048219,120]
[355729016,1741511447588,-500.0,0.00048219,120]
[355729017,1741511447597,-500.0,0.00048219,120]
[355729018,1741511447607,-500.0,0.00048219,120]
[355729019,1741511447616,-515.81265379,0.00048219,120]
[355729020,1741511447627,-500.0,0.00048219,120]
[355729021,1741511447636,-500.0,0.00048219,120]
[355729022,1741511447645,-569.91231845,0.00048219,120]
[355729023,1741511447656,-500.0,0.00048219,120]
[355729024,1741511447666,-500.0,0.00048219,120]
[355729025,1741511447675,-500.0,0.00048219,120]
[355729026,1741511447684,-500.0,0.00048219,120]
[355729027,1741511447694,-500.0,0.00048219,120]
[355729028,1741511447703,-635.22,0.00048219,120]
[355729029,1741511447712,-500.0,0.00048219,120]
[355729030,1741511447722,-500.0,0.00048219,120]
[355729031,1741511447731,-518.11984305,0.00048219,120]
[355729032,1741511447740,-500.0,0.00048219,120]
[355729033,1741511447750,-500.0,0.00048219,120]
[355729034,1741511447759,-500.0,0.00048219,120]
[355729035,1741511447824,-500.0,0.00048219,120]
[355729036,1741511447833,-500.0,0.00048219,120]
[355729037,1741511447842,-500.0,0.00048219,120]
[355729038,1741511447852,-500.0,0.00048219,120]
[355729039,1741511447861,-500.0,0.00048219,120]
[355729040,1741511447872,-500.0,0.00048219,120]
[355729041,1741511447882,-500.0,0.00048219,120]
[355729042,1741511447891,-500.0,0.00048219,120]
[355729043,1741511447901,-500.0,0.00048219,120]
[355729044,1741511447910,-500.0,0.00048219,120]
[355729045,1741511447919,-1991.62,0.00048219,120]
[355729046,1741511447929,-500.0,0.00048219,120]
[355729047,1741511447939,-5403.39,0.00048219,120]
[355729048,1741511447949,-500.0,0.00048219,120]
[355729049,1741511447958,-500.0,0.00048219,120]
[355729050,1741511447967,-500.0,0.00048219,120]
[355729051,1741511447977,-1528.44,0.00048219,120]
[355729052,1741511447986,-1102.73,0.00048219,120]
[355729053,1741511447996,-1614.28,0.00048219,120]
[355729054,1741511448006,-500.0,0.00048219,120]
[355729055,1741511448015,-500.0,0.00048219,120]
[355729056,1741511448025,-500.0,0.00048219,120]
[355729057,1741511448034,-500.0,0.00048219,120]
[355729058,1741511448044,-500.0,0.00048219,120]
[355729059,1741511448054,-500.0,0.00048219,120]
[355729060,1741511448063,-500.0,0.00048219,120]
[355729061,1741511448073,-500.0,0.00048219,120]
[355729062,1741511448083,-1397.16,0.00048219,120]
[355729063,1741511448093,-500.0,0.00048219,120]
[355729064,1741511448102,-500.0,0.00048219,120]
[355729065,1741511448112,-500.0,0.00048219,120]
[355729066,1741511448122,-500.0,0.00048219,120]
[355729067,1741511448133,-500.0,0.00048219,120]
[355729068,1741511448142,-500.0,0.00048219,120]
[355729069,1741511448153,-41151.14,0.00048219,7]
[355729070,1741511448163,-1000.0,0.00048219,7]
[355729071,1741511448173,-500.0,0.00048219,120]
[355729072,1741511448184,-500.0,0.00048219,120]
[355729073,1741511448194,-510.38148173,0.00048219,120]
[355729074,1741511448205,-1973.54,0.00048219,120]
[355729075,1741511448215,-1094.2,0.00048219,120]
[355729076,1741511448225,-602.93,0.00048219,120]
[355729077,1741511448235,-1465.69,0.00048219,120]
[355729078,1741511448245,-875.01,0.00048219,120]
[355729079,1741511448255,-500.0,0.00048219,120]
[355729080,1741511448264,-500.0,0.00048219,120]
[355729081,1741511448276,-500.0,0.00048219,120]
[355729082,1741511448286,-500.0,0.00048219,120]
[355729083,1741511448296,-500.0,0.00048219,120]
[355729084,1741511448305,-167.95141565,0.00048219,120]
[355729085,1741511448315,-500.0,0.00048219,120]
[355729086,1741511448328,-500.0,0.00048219,120]
[355729087,1741511448338,-500.0,0.00048219,120]
[355729088,1741511448348,-256.5808932,0.00048219,120]
[355729089,1741511448358,-500.0,0.00048219,120]
[355729090,1741511448368,-500.0,0.00048219,120]
[355729091,1741511448378,-2161.04,0.00048219,30]
[355729092,1741511448387,-574.83,0.00048219,120]
[355729093,1741511448397,-500.0,0.00048219,120]
[355729094,1741511448407,-500.0,0.00048219,120]
[355729095,1741511448417,-500.0,0.00048219,120]
[355729096,1741511448428,-500.0,0.00048219,120]
[355729097,1741511448437,-500.0,0.00048219,120]
[355729098,1741511448447,-500.0,0.00048219,120]
[355729099,1741511448457,-500.0,0.00048219,120]
[355729100,1741511448466,-500.0,0.00048219,120]
[355729101,1741511448476,-500.0,0.00048219,120]
[355729102,1741511448486,-500.0,0.00048219,120]
[355729103,1741511448496,-500.0,0.00048219,120]
[355729104,1741511448506,-1556.56,0.00048219,120]
[355729105,1741511448517,-500.0,0.00048219,120]
[355729106,1741511448526,-500.0,0.00048219,120]
[355729107,1741511448536,-500.0,0.00048219,120]
[355729108,1741511448546,-500.0,0.00048219,120]
[355729109,1741511448556,-500.0,0.00048219,120]
[355729110,1741511448568,-500.0,0.00048219,120]
[355729111,1741511448578,-555.04,0.00048219,120]
[355729112,1741511448588,-500.0,0.00048219,2]
[355729113,1741511448598,-2986.44,0.00048219,120]
[355729114,1741511448607,-500.0,0.00048219,120]
[355729115,1741511448618,-473.17060065,0.00048219,120]
[355729116,1741511448629,-604.05,0.00048219,120]
[355729117,1741511448639,-500.0,0.00048219,2]
[355729118,1741511448649,-748.36,0.00048219,120]
[355729119,1741511448660,-500.0,0.00048219,120]
[355729120,1741511448671,-683.97,0.00048219,120]
[355729121,1741511448680,-500.0,0.00048219,120]
[355729122,1741511448690,-500.0,0.00048219,120]
[355729123,1741511448699,-500.03,0.00048219,120]
[355729124,1741511448709,-500.0,0.00048219,120]
[355729125,1741511448719,-626.38,0.00048219,120]
[355729126,1741511448729,-500.0,0.00048219,120]
[355729127,1741511448739,-685.41,0.00048219,120]
[355729128,1741511448751,-258.89676619,0.00048273,10]
[355729129,1741511448761,-1000.0,0.00048356,2]
[355729130,1741511448771,-1000.0,0.00048356,2]
[355729131,1741511448781,-1000.0,0.00048356,2]
[355729132,1741511448850,-1000.0,0.00048356,2]
[355729133,1741511448860,-1014.3195053,0.00048356,2]
[355729134,1741511448869,-502.221594,0.00048373,10]
[355729135,1741511448879,-503.35723588,0.00048373,10]
[355729136,1741511448889,-601083.62334973,0.000484,120]
[355729137,1741511449017,-151629.92428779,0.000484,120]
[355729138,1741511449381,-2410.61846847,0.000484,120]
[355729139,1741511449408,-501.44951117,0.00047173,2]
[355729140,1741511449428,-15221.56624543,0.000484,120]
[355729141,1741511449598,-339.13901049,0.00046575,120]
[355729142,1741511450295,-160.86098951,0.00046575,120]
[355729143,1741511450304,-41.37238783,0.00047123,120]
[355729144,1741511450531,-491.40100805,0.00046474,120]
[355729145,1741511450541,-458.62761217,0.00047123,120]
[355729146,1741511450551,-508.07289737,0.00047173,10]
[355729147,1741511450561,-500.0,0.00047671,120]
[355729148,1741511450570,-459.15478,0.00047925,120]
[355729149,1741511450582,-500.0,0.00048219,120]
[355729150,1741511450591,-10874.29513212,0.000484,120]
[355729151,1741511450602,-111550.43591585,0.000484,120]
[355729152,1741511450689,-913.97976803,0.000484,120]
[355729153,1741511450711,-500.0,0.00046575,120]
[355729154,1741511450720,-357.1,0.000484,120]
[355729155,1741511540308,500.0,0.00031,10]
[355729160,1741512343242,10000.0,0.00028,10]
[355729163,1741512430115,-150.0,0.000259,2]
[355729164,1741512430137,-164.131121,0.0003589,2]
[355729165,1741512430159,-166.66666668,0.00039022,2]
[355729166,1741512430185,-177.65703597,0.00039027,114]
[355729167,1741512430207,-360.0,0.00039122,5]
[355729168,1741512430228,-6557.84,0.00039123,2]
[355729169,1741512430255,-500.0,0.00039126,2]
[355729170,1741512430281,-500.0,0.00039126,2]
[355729171,1741512430306,-500.0,0.00039126,2]
[355729172,1741512430330,-500.0,0.00039126,2]
[355729173,1741512430355,-2.61361942,0.00039126,2]
[355729174,1741512454140,-389.96781504,0.00039126,2]
[355729175,1741512454170,-372.75518496,0.00039127,2]
[355729181,1741512522801,753.916678,0.0002,120]
[355729185,1741512547105,-527.66625,0.00038085,14]
[355729186,1741512547246,-789.55356848,0.000389,8]
[355729187,1741512547270,-290.03452678,0.00038927,2]
[355729188,1741512547292,-6185.08481504,0.00039127,2]
[355729189,1741512547315,-505.42172,0.00039223,2]
[355729190,1741512547341,-265.84238161,0.00039868,2]
[355729191,1741512547366,-339.28639741,0.00039868,2]
[355729192,1741512547389,-500.0,0.00039868,31]
[355729193,1741512547412,-500.0,0.00039868,31]
[355729194,1741512547435,-500.0,0.00039868,31]
[355729195,1741512547456,-500.0,0.00039868,31]
[355729196,1741512547480,-500.0,0.00039868,31]
[355729197,1741512547502,-500.0,0.00039868,31]
[355729198,1741512547525,-500.0,0.00039868,31]
[355729199,1741512547548,-500.0,0.00039868,31]
[355729200,1741512547569,-500.0,0.00039868,31]
[355729201,1741512547591,-500.0,0.00039868,31]
[355729202,1741512547617,-500.0,0.00039868,31]
[355729203,1741512547639,-500.0,0.00039868,31]
[355729204,1741512547663,-500.0,0.00039868,31]
[355729205,1741512547685,-500.0,0.00039868,31]
[355729206,1741512547707,-500.0,0.00039868,31]
[355729207,1741512547728,-500.0,0.00039868,31]
[355729208,1741512547749,-500.0,0.00039868,31]
[355729209,1741512547770,-500.0,0.00039868,31]
[355729210,1741512547791,-500.0,0.00039868,31]
[355729211,1741512547813,-500.0,0.00039868,31]
[355729212,1741512547834,-500.0,0.00039868,31]
[355729213,1741512547856,-500.0,0.00039868,31]
[355729214,1741512547877,-500.0,0.00039868,31]
[355729215,1741512547899,-500.0,0.00039868,31]
[355729216,1741512547925,-500.0,0.00039868,31]
[355729217,1741512547948,-179.7757636,0.00039868,31]
[355729218,1741512547972,-500.0,0.00039868,31]
[355729219,1741512547994,-500.0,0.00039868,31]
[355729220,1741512548016,-500.0,0.00039868,31]
[355729221,1741512548038,-500.0,0.00039868,31]
[355729222,1741512548060,-500.0,0.00039868,31]
[355729223,1741512548082,-500.0,0.00039868,31]
[355729224,1741512548105,-500.0,0.00039868,31]
[355729225,1741512548128,-500.0,0.00039868,31]
[355729226,1741512548152,-500.0,0.00039868,31]
[355729227,1741512548175,-500.0,0.00039868,31]
[355729228,1741512548196,-500.0,0.00039868,31]
[355729229,1741512548219,-500.0,0.00039868,31]
[355729230,1741512548241,-500.0,0.00039868,31]
[355729231,1741512548264,-500.0,0.00039868,31]
[355729232,1741512548287,-500.0,0.00039868,31]
[355729233,1741512548310,-500.0,0.00039868,31]
[355729234,1741512548333,-500.0,0.00039868,31]
[355729235,1741512548355,-500.0,0.00039868,31]
[355729236,1741512548378,-500.0,0.00039868,31]
[355729237,1741512548401,-500.0,0.00039868,31]
[355729238,1741512548422,-500.0,0.00039868,31]
[355729239,1741512548444,-500.0,0.00039868,31]
[355729240,1741512548466,-500.0,0.00039868,31]
[355729241,1741512548487,-500.0,0.00039868,31]
[355729242,1741512548509,-500.0,0.00039868,31]
[355729243,1741512548531,-500.0,0.00039868,31]
[355729244,1741512548553,-500.0,0.00039868,31]
[355729245,1741512548576,-500.0,0.00039868,31]
[355729246,1741512548601,-500.0,0.00039868,2]
[355729247,1741512548621,-6557.84,0.00039869,2]
[355729248,1741512548643,-2409.87870537,0.000416,28]
[355729249,1741512548664,-24900.0,0.00041676,2]
[355729250,1741512548686,-638.87022117,0.00041699,31]
[355729251,1741512548707,-622.46154134,0.00041699,31]
[355729252,1741512548730,-500.0,0.000417,7]
[355729253,1741512548751,-482.01245608,0.000417,10]
[355729254,1741512548773,-500.0,0.000417,10]
[355729255,1741512548794,-500.0,0.000417,2]
[355729256,1741512548816,-2409.87870535,0.00042844,28]
[355729257,1741512551046,186.54478239,0.00041699,3]
[355729259,1741512592310,500.0,0.00039868,31]
[355729260,1741512592336,500.0,0.00039868,31]
[355729261,1741512592392,500.0,0.00039868,31]
[355729262,1741512592418,500.0,0.00039868,31]
[355729263,1741512592445,500.0,0.00039868,31]
[355729264,1741512592472,500.0,0.00039868,31]
[355729265,1741512592500,500.0,0.00039868,31]
[355729266,1741512592641,500.0,0.00039868,31]
[355729267,1741512592667,500.0,0.00039868,31]
[355729268,1741512592693,400.0,0.00039868,31]
[355729269,1741512592720,500.0,0.00039868,31]
[355729325,1741512632466,-2409.87870535,0.00044089,28]
[355729327,1741512632475,-527.66625,0.00044497,120]
[355729328,1741512632485,-2409.87870535,0.00045333,28]
[355729329,1741512632494,-889.13894705,0.00045948,2]
[355729331,1741512632504,-192.26060316,0.000462,2]
[355729332,1741512632513,-184.73517564,0.000462,2]
[355729334,1741512632523,-600.0,0.00046447,2]
[355729336,1741512632532,-12255.79834472,0.00046453,14]
[355729340,1741512632583,-447.20915482,0.00046452,120]
[355729342,1741512632592,-435.72307894,0.00046452,31]
[355729343,1741512632601,-3777.50488582,0.00046453,14]
[355729347,1741512632636,-437386.65725768,0.00046453,14]
[355729349,1741512632647,-1954.39,0.00046453,14]
[355729374,1741512639186,-500.0,0.00046452,120]
[355729375,1741512639195,-500.0,0.00046452,120]
[355729376,1741512639204,-500.0,0.00046452,120]
[355729377,1741512639214,-500.0,0.00046452,120]
[355729378,1741512639233,-500.0,0.00046452,120]
[355729379,1741512639244,-500.0,0.00046452,120]
[355729380,1741512639255,-307.97757636,0.00046452,120]
[355729381,1741512639264,-67.36142964,0.00046453,14]
[355729382,1741512639278,-1544558.28808214,0.00046453,14]
[355729383,1741512639288,-3192.37033954,0.00046454,46]
[355729384,1741512639298,-285730.707202,0.00046454,4]
[355729385,1741512639308,-234.75,0.00046464,30]
[355729386,1741512639318,-1148961.3287166,0.00046464,30]
[355729387,1741512639328,-500.0,0.00046473,10]
[355729388,1741512639338,-500.0,0.00046473,10]
[355729389,1741512639348,-500.0,0.00046473,10]
[355729390,1741512639358,-500.0,0.00046473,10]
[355729391,1741512639368,-500.0,0.00046473,2]
[355729392,1741512639378,-500.0,0.00046473,2]
[355729393,1741512639387,-500.0,0.00046473,10]
[355729394,1741512639397,-500.0,0.00046473,10]
[355729395,1741512639407,-511.43705835,0.00046473,5]
[355729396,1741512639417,-222000.0,0.00046475,2]
[355729397,1741512639427,-622.2,0.00046502,2]
[355729398,1741512639438,-645.2214,0.00046557,2]
[355729399,1741512639448,-6557.84,0.00046564,2]
[355729400,1741512639458,-6557.84,0.00046564,2]
[355729401,1741512639468,-505.16168038,0.00046573,10]
[355729402,1741512639477,-503.35723588,0.00046573,10]
[355729403,1741512639488,-500.0,0.00046573,10]
[355729404,1741512639498,-502.221594,0.00046573,10]
[355729405,1741512639508,-500.0,0.00046573,10]
[355729406,1741512639519,-500.0,0.00046573,10]
[355729407,1741512639528,-500.77248129,0.00046573,10]
[355729408,1741512639538,-500.0,0.00046573,10]
[355729409,1741512639549,-504.37930671,0.00046573,10]
[355729410,1741512639558,-500.0,0.00046573,10]
[355729411,1741512639568,-500.0,0.00046573,10]
[355729412,1741512639577,-500.0,0.00046573,10]
[355729413,1741512639589,-273.30648995,0.00046573,10]
[355729414,1741512639600,-480.594081,0.00046573,10]
[355729415,1741512639610,-500.0,0.00046573,10]
[355729416,1741512639620,-500.0,0.00046573,10]
[355729417,1741512639630,-500.0,0.00046573,10]
[355729418,1741512639640,-501.50396416,0.00046573,3]
[355729419,1741512639650,-500.0,0.00046573,10]
[355729420,1741512639660,-505.7871946,0.00046573,10]
[355729421,1741512639670,-500.0,0.00046573,10]
[355729422,1741512639680,-6557.84,0.00046574,2]
[355729423,1741512639689,-6557.84,0.00046574,2]
[355729424,1741512639699,-6557.84,0.00046574,2]
[355729426,1741512639709,-6557.84,0.00046574,2]
[355729427,1741512639719,-6557.84,0.00046574,2]
[355729428,1741512639728,-6557.84,0.00046574,2]
[355729429,1741512639738,-6557.84,0.00046574,2]
[355729430,1741512639748,-6557.84,0.00046574,2]
[355729431,1741512639759,-504.1608383,0.00046575,120]
[355729432,1741512639769,-500.0,0.00046575,120]
[355729433,1741512639778,-500.0,0.00046575,30]
[355729434,1741512639789,-500.0,0.00046575,120]
[355729435,1741512639798,-500.0,0.00046575,120]